{"text_format":"1","workbook":"xlsx","n_sheets":9,"sheets":["NAVODILA","SPLOŠNO","DOSTOPNOST","UPORABNIKI","PODPROGRAMI","KADRI","FINANCE","OPOMBE","matrika"],"not_rendered":{"charts":0,"images":0,"macros":1,"external_links":1,"defined_names":12,"comments":1,"pivot_tables":0},"unopened":[],"bounds":{"document_bytes":16777216,"sheet_cells":100000,"rows_first":2000,"rows_last":500,"rows_between":2000,"halvings":0,"cell_chars":16384,"cell_head_chars":4096},"cells_cut":0,"cells_raw":0,"read":"whole","date_system":"1900"}

{"sheet":"NAVODILA","index":0,"n_rows":121,"n_cols":11,"rows_kept":121,"cut":false,"hidden":false,"merged":[[0,0,0,8],[2,1,2,7],[4,1,4,7],[20,1,20,7]]}
["NAVODILA ZA IZPOLNJEVANJE"]
[]
[null,"Spoštovani, \npred vami je posodobljen obrazec za poročanje - Polletno poročilo o izvajanju socialnovarstvenega programa v obdobju od 1. 1. 2024 do 30. 6. 2024.\n\nObrazec vsebuje več listov, in sicer odvisno od vrste programa:\n- splošno, uporabniki, podprogrami, kadri, finance, evalvacija (opcijsko), kapacitete (opcijsko), drugo.\n\nPOMEMBNO: Pri izpolnjevanju vas prosimo, da odgovarjate v za to namenjene celice (sive barve). Celice, označene z zeleno barvo so avtomatski seštevki oz. preverjanje, teh celic ne spreminjajte; celice, označene z rumeno barvo pa določajo izpolnitev kot izbirni seznam (kliknite na puščico v celici).\n\nV primeru vprašanj se lahko obrnete na IRSSV, in sicer na e-pošto: svp.irssv@siol.net. Če vam e-pošto zavrača, pri pošiljanju naredite stisnjeno datoteko zbirnika (npr.: .zip, .rar ipd)."]
[]
[null,"ZAČETEK: Prosimo, izberite skupino in podskupino vašega programa. \nKo boste označili vse korake, se vam bodo odprli zavihki za izpolnjevanje."]
[null,"Opomba: \nV kolikor niste prepričani, v katero podskupino spada program, pustite prazno oz. preverite v končnem poročilu na",null,null,null,null,"POVEZAVI"]
[]
[]
[]
[null,null,"KORAK 1",null,"KORAK 2"]
[null,null,"Prosimo, najprej izberite vašo skupino programov:",null,"Prosimo, izberite vašo podskupino programov:"]
[]
[]
[]
[]
[]
[]
[]
[]
[]
[null,"KONEC: Ko boste z izpolnjevanjem končali, kliknite na spodnji gumb \"NATISNI\" in se bo obrazec avtomatsko shranil v PDF datoteko."]
[]
[]
[]
[]
[]
[]
[]
[]
[]
[]
[]
[]
[]
[]
[]
[]
[]
[]
[]
[]
[]
[]
[]
[]
[]
[]
[]
[]
[]
[]
[]
[]
[]
[]
[]
[]
[]
[]
[]
[]
[]
[]
[]
[]
[]
[]
[]
[]
[]
[]
[]
[]
[]
[]
[]
[]
[]
[]
[]
[]
[]
[]
[]
[]
[]
[]
[]
[]
[]
[]
[]
[]
[]
[]
[]
[]
[]
[]
[]
[]
[]
[]
[]
[]
[]
[]
[]
[]
[]
[]
[]
[]
[]
[null,"NASILJE","ZASVOJENI","DUŠEVNO_ZDRAVJE","BREZDOMCI","OTROCI_MLADOSTNIKI","STAREJŠI","INVALIDI","PSIHOSOCIALNA_POMOČ","ROMI","DRUGI_PROGRAMI"]
[null,"MATERINSKI DOMOVI","PREPOVEDANE DROGE – VISOKI PRAG","STANOVANJSKE SKUPINE","NAMESTITVENI PROGRAMI","DNEVNI CENTRI ZA OTROKE IN MLADOSTNIKE S PREVENTIVNIM DELOM IN SVETOVANJEM","MEDGENERACIJSKA SREDIŠČA","PROGRAMI ZA SPODBUJANJE SOCIALNE VKLJUČENOSTI IN NEODVISNEGA ŽIVLJENJA INVALIDOV","SPECIALIZIRANI PROGRAMI PSIHOSOCIALNE POMOČI OTROKOM, ODRASLIM ALI DRUŽINAM","PROGRAMI ZA ROME","DRUGI PROGRAMI"]
[null,"VARNE HIŠE, ZATOČIŠČA IN KRIZNI CENTRI","PREPOVEDANE DROGE - NIZKI PRAG","DNEVNI CENTRI","DNEVNI PROGRAMI","PREVENTIVNI PROGRAMI","PROGRAMI ZA STAREJŠE"]
[null,"SVETOVALNICE","PREPOVEDANE DROGE – PREVENTIVNI PROGRAMI","INFORMACIJSKE PISARNE IN SVETOVALNICE","DELOŽACIJE","PROGRAMI TELEFONSKEGA SVETOVANJA","PROGRAMI ZA OSEBE Z DEMENCO IN NJIHOVE SVOJCE"]
[null,"PROGRAMI PREVENTIVE","ALKOHOLIZEM","PROGRAMI TELEFONSKEGA SVETOVANJA"]
[null,"PROGRAMI TELEFONSKEGA SVETOVANJA","MOTNJE HRANJENJA","ZAGOVORNIŠTVO"]
[null,null,"PREPREČEVANJE PREKOMERNE RABE IKT"]

{"sheet":"SPLOŠNO","index":1,"n_rows":21,"n_cols":3,"rows_kept":21,"cut":false,"hidden":true,"merged":[[1,1,2,2],[0,1,0,3],[20,1,20,2]]}
[null,"Polletno poročilo o izvajanju javnega socialnovarstvenega programa \nv obdobju od 1. 1. 2024 do 30. 6. 2024 - JAVNI PROGRAMI"]
[null,"PROSIMO, DA POROČILO IZPOLNJUJETE KRATKO IN JEDRNATO, DRŽITE SE NAVODIL IN NE SPREMINJAJTE STRUKTURE OBRAZCA.\nIzpolnjen obrazec natisnite s klikom na gumb \"NATISNI V PDF\", ga podpišite \nin posredujte na MDDSZ po redni pošti na: MDDSZ, Štukljeva cesta  44, 1000 Ljubljana"]
[]
[]
[null,"Skupina, podskupina, evalvacija:",{"$f":"Skupina&\"; \"&NAVODILA!E16&\"; \"&NAVODILA!G16","v":"; ; "}]
[null,"Obdobje financiranja (izberite iz seznama):"]
[null,"Naziv izvajalca oz. organizacije:"]
[null,"Naziv programa: "]
[null,"Številka sklenjene pogodbe: "]
[null,"Naslov izvajalca oz. organizacije:"]
[null,"Telefon izvajalca, programa:                                                 "]
[null,"Elektronski naslov:"]
[null,"Spletna stran (opcijsko):"]
[null,"Tip organizacije, v kateri se izvaja program (izberite iz seznama):"]
[null,"Navedite skrbnika pogodbe na MDDSZ (naveden v pogodbi):"]
[]
[null,"Kraj in datum:"]
[]
[null,"Strokovni delavec/vodja programa + odgovorna oseba\n(navedite osebe in podpišite):"]
[]
[null,"Rok za predložitev polletnega poročila: najkasneje do 29. 7. 2024."]

{"sheet":"DOSTOPNOST","index":2,"n_rows":32,"n_cols":6,"rows_kept":32,"cut":false,"hidden":true,"merged":[[31,1,31,2],[2,1,2,5]]}
["DOSTOPNOST PROGRAMOV"]
[]
[1,"Prosimo navedite, v katerih občinah se izvaja program in vpišite število enot oz. lokacij programa v tej občini. Programi, ki imate nastanitve, vpišite še število kapacitet oz. postelj po občinah.\nOpomba: Programi telefonskega svetovanja/Programi za starejše, ki se izvajajo po celotni Sloveniji - označite na koncu 'DA' in pri občinah izvajanja vpišite občino sedeža organizacije oz. programa; \nProgrami, kjer se izvaja storitev v odprtih stanovanjskih skupinah oz. na domu uporabnika: teh lokacij ne beležite med občine, samo navedite jih v opombo."]
[null,null,"Občina \n(izberite iz seznama):","Vpišite skupno število enot oz. lokacij v občini","Prosimo, navedite, kaj vse ste zajeli \n(npr. 3 lokacije terenskega dela in 1 enota DC; 1 lokacija sedež in 1 enota SS)","OPOMBA "]
[null,"OBČINA IZVAJANJA 1"]
[null,"OBČINA IZVAJANJA 2"]
[null,"OBČINA IZVAJANJA 3"]
[null,"OBČINA IZVAJANJA 4"]
[null,"OBČINA IZVAJANJA 5"]
[null,"OBČINA IZVAJANJA 6"]
[null,"OBČINA IZVAJANJA 7"]
[null,"OBČINA IZVAJANJA 8"]
[null,"OBČINA IZVAJANJA 9"]
[null,"OBČINA IZVAJANJA 10"]
[null,"OBČINA IZVAJANJA 11"]
[null,"OBČINA IZVAJANJA 12"]
[null,"OBČINA IZVAJANJA 13"]
[null,"OBČINA IZVAJANJA 14"]
[null,"OBČINA IZVAJANJA 15"]
[null,"OBČINA IZVAJANJA 16"]
[null,"OBČINA IZVAJANJA 17"]
[null,"OBČINA IZVAJANJA 18"]
[null,"OBČINA IZVAJANJA 19"]
[null,"OBČINA IZVAJANJA 20"]
[null,"OBČINA IZVAJANJA 21"]
[null,"OBČINA IZVAJANJA 22"]
[null,"OBČINA IZVAJANJA 23"]
[null,"OBČINA IZVAJANJA 24"]
[null,"OBČINA IZVAJANJA 25"]
[null,"Skupaj",{"$f":"COUNTA(C5:C29)","v":0},{"$f":"SUM(D5:D29)","v":0}]
[]
[null,"Program se izvaja po celotni Sloveniji \n(izberite iz seznama):"]

{"sheet":"UPORABNIKI","index":3,"n_rows":69,"n_cols":6,"rows_kept":69,"cut":false,"hidden":true,"merged":[[0,0,0,9],[2,0,2,9],[5,1,5,2],[6,1,6,2],[53,1,53,3],[7,1,7,2],[8,1,8,2],[19,1,19,2],[21,1,21,8],[30,1,30,8],[52,1,52,3],[4,1,4,8],[37,1,37,8],[51,1,51,8],[33,1,33,8],[34,1,34,8],[57,1,57,3],[61,1,61,2],[68,1,68,3],[58,1,58,3],[59,1,59,3],[60,1,60,3],[61,3,61,4],[65,1,65,3],[66,1,66,3],[67,1,67,3],[64,1,64,8],[54,1,54,3],[55,1,55,3],[56,1,56,3],[38,1,38,2],[39,1,40,1],[41,1,44,1],[46,1,46,2],[47,1,47,2],[47,3,47,5],[48,1,48,8],[18,1,18,2],[11,1,11,8],[12,1,12,8],[15,1,15,8],[16,1,16,2],[17,1,17,2]]}
["VSEBINSKO POROČILO - UPORABNIKI - za obdobje od 1. 1. 2024 do 30. 6. 2024"]
[]
["Pri izpolnjevanju bodite pozorni, da se vsi podatki, ki jih vpisujete, nanašajo na obdobje od 1. 1. 2024 do 30. 6. 2024."]
[]
[1,"Prosimo, navedite skupno število vseh (različnih) uporabnikov glavnega programa in v podprogramih, en uporabnik se šteje samo enkrat na leto. Navedite tudi predvideno število uporabnikov, kot ste jih navedli v prijavi na javni razpis. Opredelite navedbo števila uporabnikov ter primerjavo s številom uporabnikov, navedenih v prijavi."]
[null,"Skupaj število različnih uporabnikov"]
[null,"Število uporabnikov v t. i. GLAVNEM programu"]
[null,"Število uporabnikov v PODPROGRAMIH"]
[null,"Predvideno število uporabnikov v prijavi na razpis"]
[]
[]
[2,"Obsežnejši oziroma kompleksnejši programi, ki svoje dejavnosti ne razdeljujete na glavni del in podprograme, prosimo, navedite dodatna pojasnila in razčlenite skupno število različnih uporabnikov (npr. N v sprejemnih centrih, N v reintegraciji, N v zavetišču, itd.)."]
[]
[]
[]
[3,"Če program obsega tudi delo v skupinah (predvsem v programih za starejše), prosimo navedite naslednje:"]
[null,"Število skupin"]
[null,"Povprečno število uporabnikov na skupino"]
[null,"Število srečanj"]
[]
[]
[4,"Prosimo, navedite število vključenih uporabnikov po mesecih ter povprečno število ur aktivne* vključenosti uporabnikov v posamezne dejavnosti programa na mesec, ki so vključeni v t. i. glavni del programa."]
[null,"Mesec","Število vseh vključenih uporabnikov","Povprečno število ur aktivne* vključenosti enega uporabnika na mesec"]
[null,"januar "]
[null,"februar "]
[null,"marec "]
[null,"april "]
[null,"maj "]
[null,"junij "]
[null,"Povprečno število na mesec",{"$f":"AVERAGE(C24:C29)","v":{"$error":"#DIV/0!"}},{"$f":"AVERAGE(D24:D29)","v":{"$error":"#DIV/0!"}}]
[null,"Opomba:\n*Aktivna vključenost pomeni, da je uporabnik aktivno vključen v dejavnosti programa. Torej pri programih, ki uporabnikom nudijo bivanje, ne vpisujete 720 ur na mesec, ampak število ur aktivne vključenosti uporabnika v program na mesec."]
[]
[]
[5,"V primeru odstopanja števila uporabnikov (od predvidenega števila na razpisu) prosimo, navedite pojasnilo."]
[]
[]
[]
[6,"Prosimo, navedite število uporabnikov GLAVNEGA programa glede na spol in starost. Prosimo zapišite oceno, če nimate točnih podatkov."]
[null,"Starostna skupina",null,"Število moških","Število žensk","Spol ni znan oz. ni definiran"]
[null,"MLADOLETNI","do vključno 15 let"]
[null,null,"nad 15 let do 18 let"]
[null,"POLNOLETNI","nad 18 let do 35 let"]
[null,null,"nad 35 let do 50 let"]
[null,null,"nad 50 let do 65 let"]
[null,null,"nad 65 let"]
[null,"ANONIMNI","starost in/ali spol nista znana oz. definirana"]
[null,"Skupaj uporabnikov GLAVNEGA programa ",null,{"$f":"SUM(D40:D46)","v":0},{"$f":"SUM(E40:E46)","v":0},{"$f":"SUM(F40:F46)","v":0}]
[null,"Ujemanje s prvo preglednico: ","Ujemanje: ",{"$f":"IF((D7=(D47+E47+F47)),\"SEŠTEVEK SE UJEMA\",\"SEŠTEVEK SE NE UJEMA - PREVERITE\")","v":"SEŠTEVEK SE UJEMA"}]
[null,"Opomba:\nIzvajalci, ki uporabljate bazo EVAPRO in beležite drugačne starostne skupine, si lahko po hitrem postopku ustvarite tabelo za izpis z navedenimi starostnimi skupinami - podrobno v »Navodilih za uporabo baze Evapro© - november 2023«, poglavje »9.1.4 Po star. skupinah«, stran 78-80. "]
[]
[]
[7,"Prosimo, navedite število uporabnikov glede na čas/obdobje njihove vključitve v program. Upoštevajte vse uporabnike. Seštevek uporabnikov mora tako biti enak podatku iz prve preglednice. Prosimo zapišite oceno, če nimate točnih podatkov."]
[null,"Število uporabnikov, ki so program obiskovali/bili vključeni…",null,null,"Število uporabnikov"]
[null,"vsak dan ali petkrat na teden"]
[null,"enkrat ali večkrat na teden, vendar ne vsak (delovni) dan"]
[null,"večkrat/nekajkrat na mesec"]
[null,"enkrat na mesec"]
[null,"nekajkrat na leto"]
[null,"enkrat na leto"]
[null,"uporabniki, za katere ni znano, kako pogosto so obiskovali/bili vključeni v program"]
[null,"Skupaj ",null,null,{"$f":"SUM(E54:E60)","v":0}]
[null,"Ujemanje s prvo preglednico: ","Ujemanje: ",{"$f":"IF((D6=(E61)),\"SEŠTEVEK SE UJEMA\",\"SEŠTEVEK SE NE UJEMA - PREVERITE\")","v":"SEŠTEVEK SE UJEMA"}]
[]
[]
[8,"Prosimo, navedite število nočitev in prenočitvenih kapacitet na dan 30. 6., če jih nudite oz. zagotavljate uporabnikom: "]
[null,"Povprečno število nočitev na mesec"]
[null,"Število prenočitvenih kapacitet na dan 30. 6. - število sob"]
[null,"Število formalno priznanih prenočitvenih kapacitet na dan 30. 6. - število postelj"]
[null,"Število dodatnih, rezervnih prenočitvenih kapacitet na dan 30. 6. - število postelj"]

{"sheet":"PODPROGRAMI","index":4,"n_rows":19,"n_cols":5,"rows_kept":19,"cut":false,"hidden":true,"merged":[[4,1,4,8],[17,1,17,4],[0,0,0,9],[2,0,2,9]]}
["VSEBINSKO POROČILO - PODPROGRAMI - za obdobje od 1. 1. 2024 do 30. 6. 2024"]
[]
["Pri izpolnjevanju bodite pozorni, da se vsi podatki, ki jih vpisujete, nanašajo na obdobje od 1. 1. 2024 do 30. 6. 2024."]
[]
[1,"V kolikor v okviru programa izvajate podprograme (npr. predavanja, e-svetovanje, skupina za starše ipd.), ki niso del glavnega programa, prosimo navedite število uporabnikov za vsak podprogram posebej. V podprogramih, kjer beležite število uporabnikov, izpolnite 2. in 4. stolpec. V podprogramih, kjer beležite le število izvajanj, izpolnite le stolpec 3. Če beležite opravljene storitve in NE števila uporabnikov (npr. telefonski klici), posebej poudarite ali gre za storitev ali uporabnika."]
[null,"Podprogram","Število različnih uporabnikov","Število storitev","Povprečno število ur vključenosti enega uporabnika na mesec/pri telefonskih klicih navedite povprečni čas pogovora"]
[]
[]
[]
[]
[]
[]
[]
[]
[]
[]
[]
[null,"po potrebi vstavite vrstice"]
[null,"Skupaj",{"$f":"SUM(C7:C18)","v":0},{"$f":"SUM(D7:D18)","v":0},{"$f":"SUM(E7:E18)","v":0}]

{"sheet":"KADRI","index":5,"n_rows":70,"n_cols":8,"rows_kept":70,"cut":false,"hidden":true,"merged":[[33,7,33,8],[15,7,15,8],[0,0,0,9],[2,0,2,9],[25,7,25,8],[26,7,26,8],[20,7,20,8],[21,7,21,8],[22,7,22,8],[4,1,4,8],[13,7,13,8],[14,7,14,8],[23,7,23,8],[24,7,24,8],[12,1,12,8],[38,7,38,8],[39,7,39,8],[34,7,34,8],[35,7,35,8],[36,7,36,8],[37,7,37,8],[61,1,61,2],[67,7,67,8],[68,7,68,8],[69,1,69,8],[52,3,52,5],[53,3,53,5],[54,3,54,5],[55,3,55,5],[56,1,56,5],[48,3,48,5],[49,3,49,5],[50,3,50,5],[51,3,51,5],[59,1,59,8],[16,7,16,8],[17,7,17,8],[18,7,18,8],[19,7,19,8],[47,3,47,5],[46,3,46,5],[27,7,27,8],[28,7,28,8],[29,7,29,8],[30,7,30,8],[43,1,43,8],[44,3,44,5],[45,3,45,5],[40,1,40,8],[31,7,31,8],[32,7,32,8]]}
["VSEBINSKO POROČILO - KADRI - za obdobje od 1. 1. 2024 do 30. 6. 2024"]
[]
["Pri izpolnjevanju bodite pozorni, da se vsi podatki, ki jih vpisujete, nanašajo na obdobje od 1. 1. 2024 do 30. 6. 2024."]
[]
[1,"Prosimo, navedite obseg zaposlitev, ki jih imate sofinancirane s strani MDDSZ:"]
[null,"Vrsta kadra","Obseg zaposlitev, financiranih od MDDSZ"]
[null,"strokovni vodja"]
[null,"strokovni delavec"]
[null,"višji laični delavec"]
[null,"nižji laični delavec"]
[]
[]
[2,"Prosimo, navedite zaposlene v programu, njihovo smer in stopnjo izobrazbe, delovno mesto, vrsto zaposlitve, število opravljenih ur v programu in vire financiranja zaposlitve. Če je zaposleni v programu sofinanciran iz drugih virov, npr. občine, navedite število ur sofinanciranja za vsak vir posebej."]
[null,"Ime in priimek","Izobrazba\n(smer/ stopnja)","Delovno mesto\n(izberite ustrezen odgovor)","Vrsta zaposlitve\n(izberite ustrezen odgovor)","Skupaj število opravljenih ur, \nne glede na financerja","Število opravljenih ur, financiranih iz MDDSZ","Število opravljenih ur \npo drugih financerjih\n(npr. OBČINA: 1044; FIHO: 500; ZRSZ: 544)"]
[]
[]
[]
[]
[]
[]
[]
[]
[]
[]
[]
[]
[]
[]
[]
[]
[]
[]
[]
[]
[]
[]
[]
[]
[]
[]
[null,"po potrebi vstavite vrstice"]
[]
[]
[3,"Prosimo, navedite še ostale plačane izvajalce programa (študente, zunanje sodelavce ipd.) ter navedite njihovo vrsto pogodbo in vrsto dela."]
[null,"Ime in priimek","Vrsta pogodbe","Vrsta dela"]
[]
[]
[]
[]
[]
[]
[]
[]
[]
[]
[]
[null,"po potrebi vstavite vrstice"]
[]
[]
[4,"Prosimo, navedite število vseh ur, ki so jih opravili prostovoljci v programu. Navedite prostovoljce glede na spol in število opravljenih ur ter opredelite vrsto prostovoljnega dela."]
[]
[null,"Skupaj opravljeno število ur prostovoljnega dela"]
[]
[null,"Prostovoljci po spolu","Število prostovoljcev","Število opravljenih ur","Število prostovoljcev","Vrsta dela glede na določila Zakona o prostovoljstvu*","Število prostovoljcev"]
[null,null,null,"0 do 24 ur",null,"organizacijsko delo"]
[null,null,null,"25 do 100 ur",null,"strokovno delo - na področju socialnega varstva"]
[null,"Ženske",null,"101 do 500 ur",null,"strokovno delo - drugo"]
[null,"Moški",null,"501 ur in več",null,"drugo delo",null,"Kontrola (vsa tri polja se morajo ujemati)"]
[null,"Skupaj število prostovoljcev",{"$f":"C67+C68","v":0},"Skupaj število prostovoljcev",{"$f":"SUM(E65:E68)","v":0},"Skupaj število prostovoljcev",{"$f":"SUM(G65:G68)","v":0},{"$f":"IF(AND(C69=E69,E69=G69),\"OK\",\"SEŠTEVEK NI OK-PREVERITE\")","v":"OK"}]
[null,"Opomba:\n* Zakon o prostovoljstvu (Uradni list RS, število 10/11, 16/11 – popr. in 82/15), 23.a člen, vrste prostovoljskega dela:\n(1) Vrste prostovoljskega dela iz druge alineje drugega odstavka 23. člena so: organizacijsko delo, ki je opravljanje prostovoljskega dela vodenja projektov in programov, njihova organizacija ali organizacija dela projekta ali programa in opravljanje mentorstva prostovoljcem; vsebinsko delo, ki je opravljanje prostovoljskega dela, za izvajanje katerega so potrebna posebna znanja in veščine ali pa gre za osnovno prostovoljsko delo posameznega programa ali projekta. Posebna znanja in veščine so znanja in veščine, ki jih prostovoljec pridobi v vzgojno izobraževalnem sistemu ali na usposabljanju prostovoljske organizacije; drugo delo, ki je opravljanje prostovoljskega dela kot pomožnega dela ali dela za podporo prostovoljskemu programu ali projektu ali dela za opravljanje katerega ni potrebno posebno usposabljanje."]

{"sheet":"FINANCE","index":6,"n_rows":93,"n_cols":7,"rows_kept":93,"cut":false,"hidden":true,"merged":[[91,1,91,2],[92,1,92,2],[86,1,86,2],[87,1,87,2],[88,1,88,2],[89,1,89,2],[90,1,90,5],[72,1,72,2],[74,1,74,5],[84,1,84,2],[85,1,85,2],[83,1,83,2],[48,1,48,2],[51,1,51,2],[49,1,49,2],[50,1,50,2],[56,1,56,5],[46,1,46,2],[45,1,45,2],[39,1,39,2],[40,1,40,5],[47,1,47,5],[78,1,78,2],[55,1,55,2],[54,1,54,2],[57,1,57,2],[58,1,58,2],[65,1,65,2],[64,1,64,2],[67,1,67,2],[68,1,68,2],[76,1,76,2],[77,1,77,2],[61,1,61,6],[62,1,62,2],[62,4,62,5],[66,1,66,2],[70,1,70,5],[8,3,8,4],[19,1,19,2],[21,1,21,2],[0,0,0,7],[2,0,2,7],[4,1,4,6],[7,1,7,6],[8,5,8,6],[18,1,18,2],[20,1,20,2],[13,1,13,2],[14,1,14,2],[15,1,15,2],[16,1,16,2],[17,1,17,2],[8,1,8,2],[44,1,44,2],[28,1,28,2],[30,1,30,2],[41,1,41,2],[42,1,42,2],[43,1,43,2],[37,1,37,2],[38,1,38,2],[31,1,31,2],[32,1,32,2],[34,1,34,2],[35,1,35,2],[29,1,29,2],[10,1,10,2],[11,1,11,2],[9,1,9,2],[12,1,12,2],[22,1,22,2],[23,1,23,6],[24,1,24,2],[52,1,52,2],[53,1,53,2],[81,1,81,5],[82,1,82,2],[63,1,63,2],[69,1,69,2],[71,1,71,2],[80,1,80,2],[79,1,79,2],[73,1,73,2],[75,1,75,2],[33,1,33,2],[36,1,36,5],[27,1,27,6],[28,4,28,5]]}
["FINANČNO POROČILO - za obdobje od 1. 1. 2024 do 30. 6. 2024"]
[]
["OPOZORILO! Listine (račune, izplačilni liste, itd.), iz katerih je razvidno, da so bila sredstva porabljena namensko za izvajanje programa, \nhranite za morebitni nadzor programa.\nPri izpolnjevanju bodite pozorni, da se vsi podatki, ki jih vpisujete, nanašajo na obdobje od 1. 1. 2024 do 30. 6. 2024."]
[]
[1,"Prosimo, preverite skupni odstotek prihodkov, pridobljenih od drugih sofinancerjev programa (% od celotne vrednosti programa)."]
[null,{"$f":"SUM(G13:G23)","v":{"$error":"#DIV/0!"}}]
[]
[null,"Prosimo, navedite vire financiranja oz. vse sofinancerje programa, odobrena sredstva za izvajanje programa ter višino sredstev. "]
[null,"PRIHODKI PROGRAMA",null,"Vsa zaprošena sredstva",null,"Vsa prejeta sredstva"]
[null,"Sofinancer programa",null,"Znesek v EUR","V odstotkih","Znesek v EUR","V odstotkih"]
[null,"MDDSZ (kot izhaja iz sklepa razpisa oz. pogodbe)",null,null,{"$f":"D11/$D$25","v":{"$error":"#DIV/0!"}},null,{"$f":"F11/$F$25","v":{"$error":"#DIV/0!"}}]
[null,"Dodatna, sredstva, prejeta od MDDSZ po 82. členu ZIUOPZP",null,null,null,null,{"$error":"#DIV/0!"}]
[null,"Občine (seštejte znesek vseh občin skupaj)",null,null,{"$f":"D13/$D$25","v":{"$error":"#DIV/0!"}},null,{"$error":"#DIV/0!"}]
[null,"Donacije",null,null,{"$error":"#DIV/0!"},null,{"$error":"#DIV/0!"}]
[null,"FIHO",null,null,{"$error":"#DIV/0!"},null,{"$error":"#DIV/0!"}]
[null,"ZRSZ",null,null,{"$error":"#DIV/0!"},null,{"$error":"#DIV/0!"}]
[null,"Drugi proračunski viri skupaj (navedite: _____)",null,null,{"$error":"#DIV/0!"},null,{"$error":"#DIV/0!"}]
[null,"Uporabniki",null,null,{"$error":"#DIV/0!"},null,{"$error":"#DIV/0!"}]
[null,"Članarine",null,null,{"$error":"#DIV/0!"},null,{"$error":"#DIV/0!"}]
[null,"Lastna sredstva",null,null,{"$error":"#DIV/0!"},null,{"$error":"#DIV/0!"}]
[null,"Ovrednoteno prostovoljsko delo",null,null,{"$error":"#DIV/0!"},null,{"$error":"#DIV/0!"}]
[null,"Brezplačen najem prostorov",null,null,{"$error":"#DIV/0!"},null,{"$error":"#DIV/0!"}]
[null,"Drugo (navedite: _____)",null,null,{"$error":"#DIV/0!"},null,{"$error":"#DIV/0!"}]
[null,"po potrebi vstavite vrstice in prekopirajte formule za preračun - ne briši vrstic"]
[null,"SKUPAJ",null,{"$f":"SUM(D11:D24)","v":0},{"$error":"#DIV/0!"},0,{"$f":"SUM(G11:G24)","v":{"$error":"#DIV/0!"}}]
[]
[]
[2,"Prosimo, navedite vse odhodke programa. Po potrebi dodajte vrstice, še posebej, če imate več različnih stroškov pri odhodkih. \n"]
[null,"ODHODKI PROGRAMA",null,"Znesek v EUR","V odstotkih"]
[null,"1. Stroški dela redno zaposlenih ",null,{"$f":"SUM(D31:D36)","v":0},null,{"$f":"D30/$D$59","v":{"$error":"#DIV/0!"}}]
[null," - plače zaposlenih ",null,null,{"$f":"D31/$D$59","v":{"$error":"#DIV/0!"}}]
[null,"- delodajalčeve dajatve za socialno varnost",null,null,{"$error":"#DIV/0!"}]
[null,"- regres za letni dopust",null,null,{"$error":"#DIV/0!"}]
[null,"- prevoz na delo",null,null,{"$error":"#DIV/0!"}]
[null,"- stroški prehrane",null,null,{"$error":"#DIV/0!"}]
[null,"- jubilejne nagrade",null,null,{"$error":"#DIV/0!"}]
[null,"po potrebi vstavite vrstice in prekopirajte formule za preračun - ne briši vrstic"]
[null,"2. Stroški zunanjih izvajalcev, vezanih neposredno na program ",null,{"$f":"SUM(D39:D40)","v":0},null,{"$f":"D38/$D$59","v":{"$error":"#DIV/0!"}}]
[null,"- delo na podlagi pogodb",null,null,{"$f":"D39/$D$59","v":{"$error":"#DIV/0!"}}]
[null,"- strošek študentskega dela",null,null,{"$f":"D40/$D$59","v":{"$error":"#DIV/0!"}}]
[null,"po potrebi vstavite vrstice in prekopirajte formule za preračun - ne briši vrstic"]
[null,"3. Povračilo stroškov v zvezi z delom na programu za prostovoljce na osnovi sklenjenih dogovorov",null,{"$f":"SUM(D43:D47)","v":0},null,{"$f":"D42/$D$59","v":{"$error":"#DIV/0!"}}]
[null,"- nagrade prostovoljcem",null,null,{"$f":"D43/$D$59","v":{"$error":"#DIV/0!"}}]
[null,"- potni stroški za prostovoljce",null,null,{"$f":"D44/$D$59","v":{"$error":"#DIV/0!"}}]
[null,"- stroški prehrane za prostovoljce",null,null,{"$f":"D45/$D$59","v":{"$error":"#DIV/0!"}}]
[null," - ovrednoteno prostovoljsko delo",null,null,{"$f":"D46/$D$59","v":{"$error":"#DIV/0!"}}]
[null," - drugi stroški za prostovoljce (natančno opredelite te stroške)",null,null,{"$f":"D47/$D$59","v":{"$error":"#DIV/0!"}}]
[null,"po potrebi vstavite vrstice in prekopirajte formule za preračun - ne briši vrstic"]
[null,"4. Stroški materiala ter storitev",null,{"$f":"SUM(D50:D56)","v":0},null,{"$f":"D49/$D$59","v":{"$error":"#DIV/0!"}}]
[null," - energija – elektrika",null,null,{"$f":"D50/$D$59","v":{"$error":"#DIV/0!"}}]
[null,"- ogrevanje prostorov",null,null,{"$error":"#DIV/0!"}]
[null,"- najemnina lokacija 1",null,null,{"$error":"#DIV/0!"}]
[null,"- najemnina lokacija 2",null,null,{"$error":"#DIV/0!"}]
[null,"-supervizija",null,null,{"$error":"#DIV/0!"}]
[null,"- telefonski stroški",null,null,{"$error":"#DIV/0!"}]
[null,"- stroški drugega materiala (natančno opredelite in navedite te stroške)",null,null,{"$f":"D56/$D$59","v":{"$error":"#DIV/0!"}}]
[null,"po potrebi vstavite vrstice in prekopirajte formule za preračun - ne briši vrstic"]
[null,"Preostanek sredstev",null,{"$f":"F25-D59","v":0}]
[null,"SKUPAJ VSI ODHODKI",null,{"$f":"D30+D38+D42+D49","v":0},{"$f":"SUM(E30:E56)","v":{"$error":"#DIV/0!"}},{"$f":"SUM(F30:F56)","v":{"$error":"#DIV/0!"}}]
[]
[]
[3,"Prosimo, navedite stroške, krite iz sredstev MDDSZ, ki ste jih pridobili preko javnega razpisa za sofinanciranje programov socialnega varstva. Po potrebi dodajte vrstice, še posebej, če imate več različnih stroškov pri odhodkih iz sredstev MDDSZ.\nOPOMBA: V tabeli ne upoštevajte zneskov oz. stroškov sredstev, prejetih od MDDSZ po 82. členu ZIUOPZP."]
[null,"ODHODKI PROGRAMA",null,"Znesek v EUR","V odstotkih"]
[null,"1. Stroški dela redno zaposlenih ",null,{"$f":"SUM(D65:D70)","v":0},null,{"$f":"D64/$D$93","v":{"$error":"#DIV/0!"}}]
[null," - plače zaposlenih ",null,null,{"$f":"D65/$D$93","v":{"$error":"#DIV/0!"}}]
[null,"- delodajalčeve dajatve za socialno varnost",null,null,{"$error":"#DIV/0!"}]
[null,"- regres za letni dopust",null,null,{"$error":"#DIV/0!"}]
[null,"- prevoz na delo",null,null,{"$error":"#DIV/0!"}]
[null,"- stroški prehrane",null,null,{"$error":"#DIV/0!"}]
[null,"- jubilejne nagrade",null,null,{"$error":"#DIV/0!"}]
[null,"po potrebi vstavite vrstice in prekopirajte formule za preračun - ne briši vrstic"]
[null,"2. Stroški zunanjih izvajalcev, vezanih neposredno na program ",null,{"$f":"SUM(D73:D74)","v":0},null,{"$f":"D72/$D$93","v":{"$error":"#DIV/0!"}}]
[null,"- delo na podlagi pogodb",null,null,{"$f":"D73/$D$93","v":{"$error":"#DIV/0!"}}]
[null,"- strošek študentskega dela",null,null,{"$f":"D74/$D$93","v":{"$error":"#DIV/0!"}}]
[null,"po potrebi vstavite vrstice in prekopirajte formule za preračun - ne briši vrstic"]
[null,"3. Povračilo stroškov v zvezi z delom na programu za prostovoljce na osnovi sklenjenih dogovorov",null,{"$f":"SUM(D77:D81)","v":0},null,{"$f":"D76/$D$93","v":{"$error":"#DIV/0!"}}]
[null,"- nagrade prostovoljcem",null,null,{"$f":"D77/$D$93","v":{"$error":"#DIV/0!"}}]
[null,"- potni stroški za prostovoljce",null,null,{"$f":"D78/$D$93","v":{"$error":"#DIV/0!"}}]
[null,"- stroški prehrane za prostovoljce",null,null,{"$error":"#DIV/0!"}]
[null," - ovrednoteno prostovoljsko delo",null,null,{"$f":"D80/$D$59","v":{"$error":"#DIV/0!"}}]
[null,"- drugi stroški za prostovoljce (natančno opredelite te stroške)",null,null,{"$error":"#DIV/0!"}]
[null,"po potrebi vstavite vrstice in prekopirajte formule za preračun - ne briši vrstic"]
[null,"4. Stroški materiala ter storitev",null,{"$f":"SUM(D84:D90)","v":0},null,{"$f":"D83/$D$93","v":{"$error":"#DIV/0!"}}]
[null," - energija – elektrika",null,null,{"$f":"D84/$D$93","v":{"$error":"#DIV/0!"}}]
[null,"- ogrevanje prostorov",null,null,{"$f":"D85/$D$93","v":{"$error":"#DIV/0!"}}]
[null,"- najemnina lokacija 1",null,null,{"$error":"#DIV/0!"}]
[null,"- najemnina lokacija 2",null,null,{"$error":"#DIV/0!"}]
[null,"-supervizija",null,null,{"$error":"#DIV/0!"}]
[null,"- telefonski stroški",null,null,{"$error":"#DIV/0!"}]
[null,"- stroški drugega materiala (natančno opredelite in navedite te stroške)",null,null,{"$error":"#DIV/0!"}]
[null,"po potrebi vstavite vrstice in prekopirajte formule za preračun - ne briši vrstic"]
[null,"Preostanek sredstev",null,{"$f":"F11-D93","v":0}]
[null,"SKUPAJ VSI ODHODKI",null,{"$f":"D64+D72+D76+D83","v":0},{"$f":"SUM(E64:E90)","v":{"$error":"#DIV/0!"}},{"$f":"SUM(F64:F90)","v":{"$error":"#DIV/0!"}}]

{"sheet":"OPOMBE","index":7,"n_rows":3,"n_cols":1,"rows_kept":3,"cut":false,"hidden":true,"merged":[[0,0,0,7],[3,0,29,6]]}
["OPOMBE"]
[]
["PROSIMO, NAVEDITE MOREBITNE OPOMBE, POJASNILA, KOMENTARJE:"]

{"sheet":"matrika","index":8,"n_rows":242,"n_cols":21,"rows_kept":242,"cut":false,"hidden":true,"merged":[[0,9,0,13],[0,18,0,19]]}
["področje","podpodročje1","podpodročje2","podpodročje3","podpodročje4","podpodročje5","podpodročje6",null,null,"zavihki, ki se morajo prikazati za to podpodročje",null,null,null,null,"IF korak 3","IF korak 3","IF 2 oz. 5 pri koraku 1",null,"IF korak \"3 = DA\" + IF korak \"2\" - ena od spodnjih opcij",null,"prikaži list KAPACITETE"]
["NASILJE","MATERINSKI DOMOVI","VARNE HIŠE, ZATOČIŠČA IN KRIZNI CENTRI","SVETOVALNICE","PROGRAMI PREVENTIVE","PROGRAMI TELEFONSKEGA SVETOVANJA",null,null,null,"navodila","splošno","vsebina","finance","opombe","evalvacija","postopki",null,null,"MATERINSKI DOMOVI","VARNE HIŠE, ZATOČIŠČA IN KRIZNI CENTRI","kapacitete"]
["ZASVOJENI","PREPOVEDANE DROGE – VISOKI PRAG","PREPOVEDANE DROGE - NIZKI PRAG","PREPOVEDANE DROGE – PREVENTIVNI PROGRAMI","ALKOHOLIZEM","MOTNJE HRANJENJA","PREPREČEVANJE PREKOMERNE RABE IKT",null,null,"navodila","splošno","vsebina","finance","opombe","evalvacija","postopki","2-dodatno",null,"PREPOVEDANE DROGE – VISOKI PRAG","ALKOHOLIZEM","kapacitete"]
["DUŠEVNO_ZDRAVJE","STANOVANJSKE SKUPINE","DNEVNI CENTRI","INFORMACIJSKE PISARNE IN SVETOVALNICE","PROGRAMI TELEFONSKEGA SVETOVANJA","ZAGOVORNIŠTVO",null,null,null,"navodila","splošno","vsebina","finance","opombe","evalvacija","postopki",null,null,"STANOVANJSKE SKUPINE",null,"kapacitete"]
["BREZDOMCI","NAMESTITVENI PROGRAMI","DNEVNI PROGRAMI","DELOŽACIJE",null,null,null,null,null,"navodila","splošno","vsebina","finance","opombe","evalvacija","postopki",null,null,"NAMESTITVENI PROGRAMI",null,"kapacitete"]
["OTROCI_MLADOSTNIKI","DNEVNI CENTRI ZA OTROKE IN MLADOSTNIKE S PREVENTIVNIM DELOM IN SVETOVANJEM","PREVENTIVNI PROGRAMI","PROGRAMI TELEFONSKEGA SVETOVANJA",null,null,null,null,null,"navodila","splošno","vsebina","finance","opombe","evalvacija","postopki","5-dodatno"]
["STAREJŠI","MEDGENERACIJSKA SREDIŠČA","PROGRAMI ZA STAREJŠE","PROGRAMI ZA OSEBE Z DEMENCO IN NJIHOVE SVOJCE",null,null,null,null,null,"navodila","splošno","vsebina","finance","opombe","evalvacija","postopki"]
["INVALIDI","PROGRAMI OSEBNE ASISTENCE IN MREŽE SPREMLJEVALCEV","PROGRAMI ZA SPODBUJANJE SOCIALNE VKLJUČENOSTI IN NEODVISNEGA ŽIVLJENJA INVALIDOV",null,null,null,null,null,null,"navodila","splošno","vsebina","finance","opombe","evalvacija","postopki",null,null,"PROGRAMI ZA SPODBUJANJE SOCIALNE VKLJUČENOSTI IN NEODVISNEGA ŽIVLJENJA INVALIDOV",null,"kapacitete"]
["PSIHOSOCIALNA_POMOČ","SPECIALIZIRANI PROGRAMI PSIHOSOCIALNE POMOČI OTROKOM, ODRASLIM ALI DRUŽINAM",null,null,null,null,null,null,null,"navodila","splošno","vsebina","finance","opombe","evalvacija","postopki"]
["ROMI","PROGRAMI ZA ROME",null,null,null,null,null,null,null,"navodila","splošno","vsebina","finance","opombe","evalvacija","postopki"]
["DRUGI_PROGRAMI","DRUGI PROGRAMI",null,null,null,null,null,null,null,"navodila","splošno","vsebina","finance","opombe","evalvacija","postopki"]
[]
[]
[]
["Dokumentacija o programu"]
["Dokumentacija za uporabnike"]
["Vprašalnik za uporabnike ob vstopu"]
["Vprašalnik za uporabnike ob evalvaciji /izstopu iz programa"]
["Vprašalnik za uporabnike po razgovoru oz. Vprašalnik o svetovalnem pogovoru"]
["Vprašalnik za oceno programa oz. Vprašalnik ocena programa za anonimne uporabnike"]
["Vprašalnik o oceni programa za svojce"]
[]
[]
[]
[]
[]
[]
[]
[]
[]
["AJDOVŠČINA"]
["ANKARAN"]
["APAČE"]
["BELTINCI"]
["BENEDIKT"]
["BISTRICA OB SOTLI"]
["BLED"]
["BLOKE"]
["BOHINJ"]
["BOROVNICA"]
["BOVEC"]
["BRASLOVČE"]
["BRDA"]
["BREZOVICA"]
["BREŽICE"]
["CANKOVA"]
["CELJE"]
["CERKLJE NA GORENJSKEM"]
["CERKNICA"]
["CERKNO"]
["CERKVENJAK"]
["CIRKULANE"]
["ČRENŠOVCI"]
["ČRNA NA KOROŠKEM"]
["ČRNOMELJ"]
["DESTRNIK"]
["DIVAČA"]
["DOBJE"]
["DOBREPOLJE"]
["DOBRNA"]
["DOBROVA-POLHOV GRADEC"]
["DOBROVNIK"]
["DOL PRI LJUBLJANI"]
["DOLENJSKE TOPLICE"]
["DOMŽALE"]
["DORNAVA"]
["DRAVOGRAD"]
["DUPLEK"]
["GORENJA VAS-POLJANE"]
["GORIŠNICA"]
["GORJE"]
["GORNJA RADGONA"]
["GORNJI GRAD"]
["GORNJI PETROVCI"]
["GRAD"]
["GROSUPLJE"]
["HAJDINA"]
["HOČE SLIVNICA"]
["HODOŠ"]
["HORJUL"]
["HRASTNIK"]
["HRPELJE-KOZINA"]
["IDRIJA"]
["IG"]
["ILIRSKA BISTRICA"]
["IVANČNA GORICA"]
["IZOLA"]
["JESENICE"]
["JEZERSKO"]
["JURŠINCI"]
["KAMNIK"]
["KANAL OB SOČI"]
["KIDRIČEVO"]
["KOBARID"]
["KOBILJE"]
["KOČEVJE"]
["KOMEN"]
["KOMENDA"]
["KOPER"]
["KOSTANJEVICA NA KRKI"]
["KOSTEL"]
["KOZJE"]
["KRANJ"]
["KRANJSKA GORA"]
["KRIŽEVCI"]
["KRŠKO"]
["KUNGOTA"]
["KUZMA"]
["LAŠKO"]
["LENART"]
["LENDAVA"]
["LITIJA"]
["LJUBLJANA"]
["LJUBNO"]
["LJUTOMER"]
["LOGATEC"]
["LOG-DRAGOMER"]
["LOŠKA DOLINA"]
["LOŠKI POTOK"]
["LOVRENC NA POHORJU"]
["LUČE"]
["LUKOVICA"]
["MAJŠPERK"]
["MAKOLE"]
["MARIBOR"]
["MARKOVCI"]
["MEDVODE"]
["MENGEŠ"]
["METLIKA"]
["MEŽICA"]
["MIKLAVŽ NA DRAVSKEM POLJU"]
["MIREN-KOSTANJEVICA"]
["MIRNA"]
["MIRNA PEČ"]
["MISLINJA"]
["MOKRONOG - TREBELNO"]
["MORAVČE"]
["MORAVSKE TOPLICE"]
["MOZIRJE"]
["MURSKA SOBOTA"]
["MUTA"]
["NAKLO"]
["NAZARJE"]
["NOVA GORICA"]
["NOVO MESTO"]
["ODRANCI"]
["OPLOTNICA"]
["ORMOŽ"]
["OSILNICA"]
["PESNICA"]
["PIRAN"]
["PIVKA"]
["PODČETRTEK"]
["PODLEHNIK"]
["PODVELKA"]
["POLJČANE"]
["POLZELA"]
["POSTOJNA"]
["PREBOLD"]
["PREDDVOR"]
["PREVALJE"]
["PTUJ"]
["PUCONCI"]
["RAČE-FRAM"]
["RADEČE"]
["RADENCI"]
["RADLJE OB DRAVI"]
["RADOVLJICA"]
["RAVNE NA KOROŠKEM"]
["RAZKRIŽJE"]
["REČICA OB SAVINJI"]
["RENČE-VOGRSKO"]
["RIBNICA"]
["RIBNICA NA POHORJU"]
["ROGAŠKA SLATINA"]
["ROGAŠOVCI"]
["ROGATEC"]
["RUŠE"]
["SELNICA OB DRAVI"]
["SEMIČ"]
["SEVNICA"]
["SEŽANA"]
["SLOVENJ GRADEC"]
["SLOVENSKA BISTRICA"]
["SLOVENSKE KONJICE"]
["SODRAŽICA"]
["SOLČAVA"]
["SREDIŠČE OB DRAVI"]
["STARŠE"]
["STRAŽA"]
["SVETA ANA"]
["SVETA TROJICA V SLOVENSKIH GORICAH"]
["SVETI ANDRAŽ V SLOVENSKIH GORICAH"]
["SVETI JURIJ OB ŠČAVNICI"]
["SVETI JURIJ V SLOVENSKIH GORICAH"]
["SVETI TOMAŽ"]
["ŠALOVCI"]
["ŠEMPETER-VRTOJBA"]
["ŠENČUR"]
["ŠENTILJ"]
["ŠENTJERNEJ"]
["ŠENTJUR"]
["ŠENTRUPERT"]
["ŠKOCJAN"]
["ŠKOFJA LOKA"]
["ŠKOFLJICA"]
["ŠMARJE PRI JELŠAH"]
["ŠMARJEŠKE TOPLICE"]
["ŠMARTNO OB PAKI"]
["ŠMARTNO PRI LITIJI"]
["ŠOŠTANJ"]
["ŠTORE"]
["TABOR"]
["TIŠINA"]
["TOLMIN"]
["TRBOVLJE"]
["TREBNJE"]
["TRNOVSKA VAS"]
["TRZIN"]
["TRŽIČ"]
["TURNIŠČE"]
["VELENJE"]
["VELIKA POLANA"]
["VELIKE LAŠČE"]
["VERŽEJ"]
["VIDEM"]
["VIPAVA"]
["VITANJE"]
["VODICE"]
["VOJNIK"]
["VRANSKO"]
["VRHNIKA"]
["VUZENICA"]
["ZAGORJE OB SAVI"]
["ZAVRČ"]
["ZREČE"]
["ŽALEC"]
["ŽELEZNIKI"]
["ŽETALE"]
["ŽIRI"]
["ŽIROVNICA"]
["ŽUŽEMBERK"]